[Event "*** SCC Grand Prix: Titled Tuesday Blitz"]
[Site "Chess.com"]
[Date "2020.06.02"]
[Round "5"]
[White "tsvet2005"]
[Black "abykhovsky"]
[Result "0-1"]
[WhiteElo "2554"]
[BlackElo "2795"]
[TimeControl "180+1"]
[EndTime "10:59:06 PDT"]
[Termination "abykhovsky won by resignation"]

1. d4 {[%clk 0:03:00.9]} 1... Nf6 {[%clk 0:02:59.7]} 2. c4 {[%clk 0:03:01.5]}
2... g6 {[%clk 0:02:59.5]} 3. Nc3 {[%clk 0:03:01.8]} 3... d5 {[%clk 0:02:59.5]}
4. Nf3 {[%clk 0:03:01.6]} 4... Bg7 {[%clk 0:02:59.6]} 5. h4 {[%clk 0:03:02.1]}
5... h5 {[%clk 0:02:49.4]} 6. Bg5 {[%clk 0:03:00.6]} 6... c6 {[%clk 0:02:47.2]}
7. Bxf6 {[%clk 0:02:57.1]} 7... Bxf6 {[%clk 0:02:46.8]} 8. e3 {[%clk 0:02:57.5]}
8... O-O {[%clk 0:02:46]} 9. Qb3 {[%clk 0:02:57.6]} 9... e6 {[%clk 0:02:45.5]}
10. O-O-O {[%clk 0:02:49.7]} 10... Nd7 {[%clk 0:02:42.3]} 11. e4 {[%clk
0:02:44.1]} 11... dxc4 {[%clk 0:02:34.9]} 12. Bxc4 {[%clk 0:02:41.3]} 12... b5
{[%clk 0:02:34.9]} 13. Bd3 {[%clk 0:02:40.1]} 13... a6 {[%clk 0:02:12.3]} 14. e5
{[%clk 0:02:24]} 14... Bg7 {[%clk 0:02:12.3]} 15. Ne4 {[%clk 0:02:23.8]} 15...
c5 {[%clk 0:02:08.1]} 16. Nxc5 {[%clk 0:02:08.5]} 16... Nxc5 {[%clk 0:02:05.9]}
17. dxc5 {[%clk 0:02:09.4]} 17... Qc7 {[%clk 0:02:06.2]} 18. Qc2 {[%clk
0:01:47.9]} 18... Bb7 {[%clk 0:02:01.8]} 19. Rhe1 {[%clk 0:01:40.1]} 19... Rac8
{[%clk 0:01:56]} 20. Be4 {[%clk 0:01:23.8]} 20... Qxc5 {[%clk 0:01:50]} 21. Qxc5
{[%clk 0:01:17.2]} 21... Rxc5+ {[%clk 0:01:50.9]} 22. Kb1 {[%clk 0:01:17.7]}
22... Bxe4+ {[%clk 0:01:51]} 23. Rxe4 {[%clk 0:01:18.6]} 23... Rfc8 {[%clk
0:01:51.4]} 24. Re2 {[%clk 0:01:16.1]} 24... Bh6 {[%clk 0:01:43.2]} 25. b3
{[%clk 0:01:15.1]} 25... Bc1 {[%clk 0:01:36.7]} 26. Nd4 {[%clk 0:01:10.6]} 26...
Bf4 {[%clk 0:01:31.2]} 27. Nf3 {[%clk 0:01:06]} 27... Rc3 {[%clk 0:01:30.3]} 28.
Re4 {[%clk 0:00:53.6]} 28... Bc1 {[%clk 0:01:28.5]} 29. Nd4 {[%clk 0:00:51.9]}
29... Ba3 {[%clk 0:01:25.1]} 30. Ree1 {[%clk 0:00:44.2]} 30... Bc5 {[%clk
0:01:05.3]} 31. Re2 {[%clk 0:00:36.1]} 31... Bb6 {[%clk 0:00:56]} 32. Kb2 {[%clk
0:00:27.3]} 32... R3c5 {[%clk 0:00:53.1]} 33. Nc2 {[%clk 0:00:24.2]} 33... Kg7
{[%clk 0:00:43.4]} 34. f4 {[%clk 0:00:24]} 34... Rc3 {[%clk 0:00:41.4]} 35. Nb4
{[%clk 0:00:18.9]} 35... a5 {[%clk 0:00:40.1]} 36. Nd3 {[%clk 0:00:14.4]} 36...
b4 {[%clk 0:00:34.6]} 37. Rdd2 {[%clk 0:00:07.9]} 37... Bd4 {[%clk 0:00:31.6]}
38. Kb1 {[%clk 0:00:07.9]} 38... Kf8 {[%clk 0:00:29.2]} 39. Re4 {[%clk 0:00:07]}
39... Bb6 {[%clk 0:00:26.5]} 40. Ree2 {[%clk 0:00:06.4]} 40... Ke7 {[%clk
0:00:24.6]} 41. Rc2 {[%clk 0:00:06.2]} 41... Rxc2 {[%clk 0:00:21.6]} 42. Rxc2
{[%clk 0:00:07.1]} 42... Rd8 {[%clk 0:00:21.7]} 43. Rd2 {[%clk 0:00:01.6]} 43...
Be3 {[%clk 0:00:21.3]} 44. Rd1 {[%clk 0:00:01.8]} 44... Bxf4 {[%clk 0:00:21.6]}
45. Kc2 {[%clk 0:00:02.3]} 45... Bg3 {[%clk 0:00:21.6]} 46. Rh1 {[%clk
0:00:01.5]} 46... Rd4 {[%clk 0:00:20.8]} 47. Rh3 {[%clk 0:00:01.6]} 47... Bxh4
{[%clk 0:00:20.9]} 48. g3 {[%clk 0:00:02.1]} 48... Bg5 {[%clk 0:00:20.8]} 49.
Rh2 {[%clk 0:00:01.8]} 49... Rg4 {[%clk 0:00:19]} 50. Re2 {[%clk 0:00:01.2]}
50... Rxg3 {[%clk 0:00:19]} 51. Nc5 {[%clk 0:00:02.1]} 51... h4 {[%clk
0:00:18.6]} 52. Nb7 {[%clk 0:00:02.5]} 52... h3 {[%clk 0:00:18.6]} 53. Kd1
{[%clk 0:00:02.3]} 53... Rg1+ {[%clk 0:00:18.1]} 0-1

[Event "*** SCC Grand Prix: Titled Tuesday Blitz"]
[Site "Chess.com"]
[Date "2020.06.02"]
[Round "5"]
[White "themind1hunter"]
[Black "joksijoksi"]
[Result "1-0"]
[WhiteElo "2502"]
[BlackElo "2342"]
[TimeControl "180+1"]
[EndTime "10:59:06 PDT"]
[Termination "themind1hunter won on time"]

1. e4 {[%clk 0:03:00.9]} 1... e6 {[%clk 0:03:00.4]} 2. d4 {[%clk 0:03:00.2]}
2... d5 {[%clk 0:03:01]} 3. Nd2 {[%clk 0:03:00.3]} 3... Nf6 {[%clk 0:03:01.4]}
4. e5 {[%clk 0:03:00.6]} 4... Nfd7 {[%clk 0:03:02]} 5. Bd3 {[%clk 0:03:01]} 5...
c5 {[%clk 0:03:02.7]} 6. c3 {[%clk 0:03:01.6]} 6... Nc6 {[%clk 0:03:03.3]} 7.
Ne2 {[%clk 0:03:02.2]} 7... cxd4 {[%clk 0:03:03.9]} 8. cxd4 {[%clk 0:03:02.6]}
8... f6 {[%clk 0:03:04.8]} 9. exf6 {[%clk 0:03:02.9]} 9... Nxf6 {[%clk
0:03:05.7]} 10. Nf3 {[%clk 0:03:03]} 10... Bd6 {[%clk 0:03:06.2]} 11. O-O {[%clk
0:03:01.6]} 11... O-O {[%clk 0:03:06.8]} 12. Bf4 {[%clk 0:03:01.5]} 12... Bxf4
{[%clk 0:03:07.3]} 13. Nxf4 {[%clk 0:03:02.4]} 13... Ne4 {[%clk 0:03:08.1]} 14.
Qc1 {[%clk 0:03:02]} 14... Ng5 {[%clk 0:02:30.2]} 15. Nxg5 {[%clk 0:02:20.6]}
15... Qxg5 {[%clk 0:02:31.1]} 16. Bxh7+ {[%clk 0:02:20.5]} 16... Kxh7 {[%clk
0:02:32]} 17. Nxe6 {[%clk 0:02:20.4]} 17... Qf6 {[%clk 0:02:31.9]} 18. Nxf8+
{[%clk 0:02:20.8]} 18... Qxf8 {[%clk 0:02:32.8]} 19. Qg5 {[%clk 0:02:20.4]}
19... Qf5 {[%clk 0:02:29.9]} 20. Qh4+ {[%clk 0:02:20]} 20... Kg8 {[%clk
0:02:25.7]} 21. Rfe1 {[%clk 0:02:20.4]} 21... Bd7 {[%clk 0:02:11.2]} 22. Re2
{[%clk 0:02:04]} 22... Qg4 {[%clk 0:01:59.4]} 23. Qxg4 {[%clk 0:01:59.5]} 23...
Bxg4 {[%clk 0:02:00.3]} 24. f3 {[%clk 0:01:52.7]} 24... Bd7 {[%clk 0:01:37.8]}
25. Rd2 {[%clk 0:01:44.3]} 25... Kf7 {[%clk 0:01:37]} 26. Re1 {[%clk 0:01:43.1]}
26... Re8 {[%clk 0:01:28.8]} 27. Kf2 {[%clk 0:01:42.3]} 27... Rxe1 {[%clk
0:01:27.4]} 28. Kxe1 {[%clk 0:01:43.2]} 28... Ke6 {[%clk 0:01:28]} 29. Kf2
{[%clk 0:01:41.8]} 29... Kd6 {[%clk 0:01:14.6]} 30. Ke3 {[%clk 0:01:41.5]} 30...
Ke6 {[%clk 0:01:09.1]} 31. Kf4 {[%clk 0:01:40.7]} 31... Kf6 {[%clk 0:01:09]} 32.
h4 {[%clk 0:01:39.1]} 32... Ne7 {[%clk 0:01:09.2]} 33. g4 {[%clk 0:01:38.6]}
33... Ng6+ {[%clk 0:01:05.2]} 34. Kg3 {[%clk 0:01:38.7]} 34... Ne7 {[%clk
0:01:04.6]} 35. f4 {[%clk 0:01:36.5]} 35... a5 {[%clk 0:00:56.7]} 36. f5 {[%clk
0:01:34]} 36... a4 {[%clk 0:00:47]} 37. Kf4 {[%clk 0:01:33.2]} 37... Nc6 {[%clk
0:00:47.1]} 38. g5+ {[%clk 0:01:33.1]} 38... Kf7 {[%clk 0:00:46.2]} 39. h5
{[%clk 0:01:32.2]} 39... Ne7 {[%clk 0:00:18.7]} 40. f6 {[%clk 0:01:13.1]} 40...
gxf6 {[%clk 0:00:16.9]} 41. g6+ {[%clk 0:01:06.9]} 41... Kg7 {[%clk 0:00:16.7]}
42. Rh2 {[%clk 0:01:00.8]} 42... Nf5 {[%clk 0:00:15]} 43. Re2 {[%clk 0:00:55.6]}
43... b5 {[%clk 0:00:09.6]} 44. Re1 {[%clk 0:00:45.3]} 44... b4 {[%clk
0:00:08.6]} 45. a3 {[%clk 0:00:44.5]} 45... b3 {[%clk 0:00:07.4]} 46. Rd1 {[%clk
0:00:24]} 46... Kh6 {[%clk 0:00:05.9]} 47. Rh1 {[%clk 0:00:20.5]} 47... Ng7
{[%clk 0:00:03]} 48. Re1 {[%clk 0:00:14.8]} 1-0

[Event "*** SCC Grand Prix: Titled Tuesday Blitz"]
[Site "Chess.com"]
[Date "2020.06.02"]
[Round "5"]
[White "ArnieChipmunk"]
[Black "aisha_zakirova"]
[Result "1-0"]
[WhiteElo "2290"]
[BlackElo "1961"]
[TimeControl "180+1"]
[EndTime "10:59:06 PDT"]
[Termination "ArnieChipmunk won on time"]

1. e4 {[%clk 0:03:00.8]} 1... c5 {[%clk 0:02:58.7]} 2. Nf3 {[%clk 0:03:00.8]}
2... d6 {[%clk 0:02:58.4]} 3. d4 {[%clk 0:03:01]} 3... cxd4 {[%clk 0:02:58.2]}
4. Nxd4 {[%clk 0:03:01.9]} 4... Nf6 {[%clk 0:02:58.3]} 5. Nc3 {[%clk 0:03:02.5]}
5... Nc6 {[%clk 0:02:58.1]} 6. Bg5 {[%clk 0:03:02.7]} 6... e6 {[%clk 0:02:56.6]}
7. Qd2 {[%clk 0:03:02.6]} 7... a6 {[%clk 0:02:53]} 8. O-O-O {[%clk 0:03:02.7]}
8... Bd7 {[%clk 0:02:49]} 9. f3 {[%clk 0:03:00.7]} 9... h6 {[%clk 0:02:47.1]}
10. Be3 {[%clk 0:03:00.8]} 10... Be7 {[%clk 0:02:45.1]} 11. g4 {[%clk
0:03:01.3]} 11... b5 {[%clk 0:02:42.6]} 12. Kb1 {[%clk 0:03:01.1]} 12... b4
{[%clk 0:02:39.6]} 13. Nce2 {[%clk 0:03:00.3]} 13... Ne5 {[%clk 0:02:29.3]} 14.
Ng3 {[%clk 0:02:58]} 14... a5 {[%clk 0:02:24.3]} 15. h4 {[%clk 0:02:55.7]} 15...
a4 {[%clk 0:02:23.1]} 16. g5 {[%clk 0:02:53.4]} 16... hxg5 {[%clk 0:02:06.8]}
17. hxg5 {[%clk 0:02:53.2]} 17... Nh7 {[%clk 0:02:03.2]} 18. f4 {[%clk
0:02:33.3]} 18... Ng4 {[%clk 0:01:54.5]} 19. Bh3 {[%clk 0:02:01]} 19... Nxe3
{[%clk 0:01:53]} 20. Qxe3 {[%clk 0:02:01.2]} 20... b3 {[%clk 0:01:52.4]} 21. g6
{[%clk 0:01:53.8]} 21... bxc2+ {[%clk 0:01:24.4]} 22. Kxc2 {[%clk 0:01:51.4]}
22... fxg6 {[%clk 0:01:16.9]} 23. Kb1 {[%clk 0:01:50.3]} 23... Rf8 {[%clk
0:01:12.5]} 24. Bxe6 {[%clk 0:01:42.2]} 24... a3 {[%clk 0:01:05.2]} 25. Rxh7
{[%clk 0:01:38.5]} 25... Qb6 {[%clk 0:00:54.6]} 26. Qb3 {[%clk 0:01:20.4]} 26...
Qxb3 {[%clk 0:00:33.8]} 27. Bxb3 {[%clk 0:01:19.8]} 27... Rxf4 {[%clk
0:00:32.5]} 28. Rxg7 {[%clk 0:01:09.1]} 28... Rf2 {[%clk 0:00:29]} 29. bxa3
{[%clk 0:01:00.2]} 29... Rxa3 {[%clk 0:00:26.2]} 30. Nc2 {[%clk 0:00:48.3]}
30... Ba4 {[%clk 0:00:17.8]} 31. Nxa3 {[%clk 0:00:43.5]} 31... Bxb3 {[%clk
0:00:17.7]} 32. axb3 {[%clk 0:00:43.7]} 32... Rf3 {[%clk 0:00:18]} 33. Ne2
{[%clk 0:00:42]} 33... Rxb3+ {[%clk 0:00:17.4]} 34. Ka2 {[%clk 0:00:42.1]} 34...
Re3 {[%clk 0:00:11.9]} 35. Rd2 {[%clk 0:00:36.2]} 35... d5 {[%clk 0:00:11.2]}
36. Rxe7+ {[%clk 0:00:34.6]} 36... Kxe7 {[%clk 0:00:10.8]} 37. exd5 {[%clk
0:00:35.1]} 37... g5 {[%clk 0:00:09.9]} 38. d6+ {[%clk 0:00:35.3]} 38... Kd7
{[%clk 0:00:09.9]} 39. Nd4 {[%clk 0:00:34.5]} 39... g4 {[%clk 0:00:09.6]} 40.
Nf5 {[%clk 0:00:34.5]} 40... Rf3 {[%clk 0:00:08]} 41. Nh4 {[%clk 0:00:32.6]}
41... Rh3 {[%clk 0:00:08]} 42. Ng6 {[%clk 0:00:32.8]} 42... g3 {[%clk
0:00:07.5]} 43. Ne5+ {[%clk 0:00:32.9]} 43... Ke6 {[%clk 0:00:06.6]} 44. d7
{[%clk 0:00:33.1]} 44... g2 {[%clk 0:00:06.6]} 45. Rxg2 {[%clk 0:00:32.4]} 45...
Rh8 {[%clk 0:00:05.5]} 46. Nac4 {[%clk 0:00:30.6]} 46... Rd8 {[%clk 0:00:02.6]}
47. Rd2 {[%clk 0:00:29.8]} 47... Ke7 {[%clk 0:00:01.5]} 48. Nc6+ {[%clk
0:00:29.9]} 1-0

[Event "*** SCC Grand Prix: Titled Tuesday Blitz"]
[Site "Chess.com"]
[Date "2020.06.02"]
[Round "5"]
[White "Supernotar"]
[Black "bait_or_mate"]
[Result "1-0"]
[WhiteElo "2705"]
[BlackElo "2541"]
[TimeControl "180+1"]
[EndTime "10:59:07 PDT"]
[Termination "Supernotar won on time"]

1. d4 {[%clk 0:03:00.9]} 1... Nf6 {[%clk 0:02:59.7]} 2. c4 {[%clk 0:03:01.1]}
2... e6 {[%clk 0:02:59.9]} 3. Nf3 {[%clk 0:03:01.4]} 3... d5 {[%clk 0:02:58.9]}
4. e3 {[%clk 0:03:01.5]} 4... a6 {[%clk 0:02:58.6]} 5. Nbd2 {[%clk 0:03:01]}
5... Nbd7 {[%clk 0:02:58]} 6. Bd3 {[%clk 0:03:00.8]} 6... Bd6 {[%clk 0:02:56.4]}
7. O-O {[%clk 0:02:59.5]} 7... O-O {[%clk 0:02:55.2]} 8. e4 {[%clk 0:02:52.8]}
8... dxe4 {[%clk 0:02:53.8]} 9. Nxe4 {[%clk 0:02:52.9]} 9... Nxe4 {[%clk
0:02:54.7]} 10. Bxe4 {[%clk 0:02:53.5]} 10... Nf6 {[%clk 0:02:51.4]} 11. Bc2
{[%clk 0:02:50.7]} 11... c5 {[%clk 0:02:51.9]} 12. Bg5 {[%clk 0:02:49.9]} 12...
h6 {[%clk 0:02:51]} 13. Bh4 {[%clk 0:02:46.8]} 13... cxd4 {[%clk 0:02:48.9]} 14.
Qxd4 {[%clk 0:02:46]} 14... Be7 {[%clk 0:02:43.8]} 15. Qf4 {[%clk 0:02:43.2]}
15... Nh5 {[%clk 0:02:12.3]} 16. Qe4 {[%clk 0:02:14.9]} 16... f5 {[%clk
0:02:11.9]} 17. Bxe7 {[%clk 0:02:14.7]} 17... fxe4 {[%clk 0:02:11.9]} 18. Bxd8
{[%clk 0:02:14.4]} 18... exf3 {[%clk 0:02:12.8]} 19. Be7 {[%clk 0:02:08.4]}
19... fxg2 {[%clk 0:02:07.8]} 20. Kxg2 {[%clk 0:02:05.3]} 20... Rf7 {[%clk
0:02:03.3]} 21. Bd6 {[%clk 0:01:56.3]} 21... Bd7 {[%clk 0:02:00.3]} 22. Be4
{[%clk 0:01:41.1]} 22... Rc8 {[%clk 0:01:42.8]} 23. c5 {[%clk 0:01:36.6]} 23...
Bc6 {[%clk 0:01:29.9]} 24. Rae1 {[%clk 0:01:31.5]} 24... Nf4+ {[%clk 0:01:23.4]}
25. Kg3 {[%clk 0:01:25.6]} 25... Nh5+ {[%clk 0:01:20.4]} 26. Kh4 {[%clk
0:01:12.3]} 26... Nf4 {[%clk 0:01:14.3]} 27. Kg4 {[%clk 0:01:01.1]} 27... g5
{[%clk 0:01:07.8]} 28. h4 {[%clk 0:00:55]} 28... h5+ {[%clk 0:00:15.5]} 29. Kxg5
{[%clk 0:00:41.5]} 29... Bxe4 {[%clk 0:00:14.9]} 30. Rxe4 {[%clk 0:00:37.1]}
30... Rf5+ {[%clk 0:00:14.8]} 31. Kh6 {[%clk 0:00:36.9]} 31... Kf7 {[%clk
0:00:13.3]} 32. Be5 {[%clk 0:00:29.1]} 32... Ng6 {[%clk 0:00:07.7]} 33. Bg7
{[%clk 0:00:23.1]} 33... Rg8 {[%clk 0:00:06.5]} 34. Rd1 {[%clk 0:00:18.4]} 34...
Rxg7 {[%clk 0:00:02.3]} 35. Rd7+ {[%clk 0:00:18.4]} 35... Ne7 {[%clk 0:00:02.4]}
36. Rxe7+ {[%clk 0:00:18.7]} 36... Kxe7 {[%clk 0:00:03.3]} 37. Kxg7 {[%clk
0:00:19.6]} 37... Rxf2 {[%clk 0:00:02.7]} 38. Rb4 {[%clk 0:00:18.2]} 38... Rg2+
{[%clk 0:00:01.2]} 39. Kh6 {[%clk 0:00:18.4]} 39... Kf6 {[%clk 0:00:02.1]} 40.
Rxb7 {[%clk 0:00:15.3]} 40... Rg8 {[%clk 0:00:02.6]} 41. Kxh5 {[%clk 0:00:14.8]}
41... Rc8 {[%clk 0:00:02]} 42. b4 {[%clk 0:00:14.2]} 42... e5 {[%clk 0:00:02.4]}
43. Kg4 {[%clk 0:00:12.9]} 43... Ke6 {[%clk 0:00:01.4]} 44. h5 {[%clk
0:00:11.9]} 44... Kd5 {[%clk 0:00:02.3]} 45. h6 {[%clk 0:00:12]} 45... Kd4
{[%clk 0:00:02.1]} 46. h7 {[%clk 0:00:12]} 46... e4 {[%clk 0:00:02.2]} 47. Re7
{[%clk 0:00:08.9]} 1-0

[Event "*** SCC Grand Prix: Titled Tuesday Blitz"]
[Site "Chess.com"]
[Date "2020.06.02"]
[Round "5"]
[White "youngKID"]
[Black "Reader777"]
[Result "0-1"]
[WhiteElo "2759"]
[BlackElo "2609"]
[TimeControl "180+1"]
[EndTime "10:59:08 PDT"]
[Termination "Reader777 won on time"]

1. e4 {[%clk 0:03:00.9]} 1... c5 {[%clk 0:02:59.2]} 2. Nf3 {[%clk 0:03:00.3]}
2... d6 {[%clk 0:02:59.2]} 3. c3 {[%clk 0:02:58.8]} 3... Nf6 {[%clk 0:02:58.7]}
4. Be2 {[%clk 0:02:59.2]} 4... g6 {[%clk 0:02:58.5]} 5. O-O {[%clk 0:02:55.2]}
5... Bg7 {[%clk 0:02:58.3]} 6. Re1 {[%clk 0:02:55]} 6... O-O {[%clk 0:02:56.8]}
7. Bf1 {[%clk 0:02:55.3]} 7... Nc6 {[%clk 0:02:55.2]} 8. h3 {[%clk 0:02:55.3]}
8... e5 {[%clk 0:02:46.2]} 9. Na3 {[%clk 0:02:48.9]} 9... d5 {[%clk 0:02:43.1]}
10. exd5 {[%clk 0:02:47.3]} 10... Nxd5 {[%clk 0:02:42]} 11. Nc4 {[%clk
0:02:45.6]} 11... Re8 {[%clk 0:02:41.4]} 12. d3 {[%clk 0:02:38.8]} 12... b5
{[%clk 0:02:38.4]} 13. Ne3 {[%clk 0:02:35.8]} 13... Bb7 {[%clk 0:02:35.2]} 14.
a4 {[%clk 0:02:32.2]} 14... a6 {[%clk 0:02:34.2]} 15. g3 {[%clk 0:02:19.2]}
15... Nxe3 {[%clk 0:01:46.6]} 16. Bxe3 {[%clk 0:02:18.4]} 16... Qe7 {[%clk
0:01:43.9]} 17. Nd2 {[%clk 0:02:01.3]} 17... Nd8 {[%clk 0:01:29.6]} 18. Qb3
{[%clk 0:01:47.6]} 18... Qd7 {[%clk 0:00:56.2]} 19. Ne4 {[%clk 0:00:48.9]} 19...
Ne6 {[%clk 0:00:49.5]} 20. Bg2 {[%clk 0:00:39.1]} 20... Qxd3 {[%clk 0:00:32.1]}
21. Rad1 {[%clk 0:00:38.3]} 21... Qc4 {[%clk 0:00:30.5]} 22. Qxc4 {[%clk
0:00:36.1]} 22... bxc4 {[%clk 0:00:31.4]} 23. Nd6 {[%clk 0:00:36.5]} 23... Bxg2
{[%clk 0:00:29.5]} 24. Nxe8 {[%clk 0:00:36.7]} 24... Bxh3 {[%clk 0:00:15.7]} 25.
Nd6 {[%clk 0:00:26.9]} 25... f5 {[%clk 0:00:13.1]} 26. Nxc4 {[%clk 0:00:25.5]}
26... f4 {[%clk 0:00:11.6]} 27. Bc1 {[%clk 0:00:13.8]} 27... Bg4 {[%clk
0:00:10.4]} 28. Rd6 {[%clk 0:00:10.1]} 28... Ng5 {[%clk 0:00:10.5]} 29. Kh1
{[%clk 0:00:05.3]} 29... Nf3 {[%clk 0:00:09]} 30. Red1 {[%clk 0:00:04.2]} 30...
Nd4 {[%clk 0:00:07.3]} 31. Re1 {[%clk 0:00:02.6]} 31... Nf3 {[%clk 0:00:07.5]}
32. Red1 {[%clk 0:00:02.7]} 32... Nd4 {[%clk 0:00:07.2]} 33. cxd4 {[%clk
0:00:03.2]} 33... Bxd1 {[%clk 0:00:06.7]} 34. dxc5 {[%clk 0:00:03.6]} 34... Bf3+
{[%clk 0:00:06.6]} 35. Kh2 {[%clk 0:00:03.5]} 35... Rc8 {[%clk 0:00:05.4]} 36.
b4 {[%clk 0:00:03.2]} 36... fxg3+ {[%clk 0:00:05]} 37. Kxg3 {[%clk 0:00:02.9]}
37... e4 {[%clk 0:00:05.4]} 38. Bf4 {[%clk 0:00:02.5]} 38... Be2 {[%clk
0:00:04.9]} 39. Ne3 {[%clk 0:00:02.2]} 39... h6 {[%clk 0:00:03.2]} 40. c6 {[%clk
0:00:02.6]} 40... Kh7 {[%clk 0:00:03.6]} 41. Rd7 {[%clk 0:00:02.4]} 41... Kh8
{[%clk 0:00:03.5]} 42. c7 {[%clk 0:00:02.2]} 42... Bf6 {[%clk 0:00:04]} 43. Be5
{[%clk 0:00:02.1]} 43... Bxe5+ {[%clk 0:00:03.2]} 0-1

[Event "*** SCC Grand Prix: Titled Tuesday Blitz"]
[Site "Chess.com"]
[Date "2020.06.02"]
[Round "5"]
[White "DivyaDeshmukh23"]
[Black "Semen_Khanin"]
[Result "0-1"]
[WhiteElo "2478"]
[BlackElo "2708"]
[TimeControl "180+1"]
[EndTime "10:59:08 PDT"]
[Termination "Semen_Khanin won by resignation"]

1. e4 {[%clk 0:03:00.9]} 1... c5 {[%clk 0:02:59.8]} 2. Nf3 {[%clk 0:03:00.1]}
2... e6 {[%clk 0:03:00.1]} 3. d4 {[%clk 0:02:59.1]} 3... cxd4 {[%clk 0:03:00.1]}
4. Nxd4 {[%clk 0:03:00]} 4... Nc6 {[%clk 0:03:00.8]} 5. Be3 {[%clk 0:02:55]}
5... Nf6 {[%clk 0:02:57.9]} 6. Bd3 {[%clk 0:02:53.5]} 6... e5 {[%clk 0:02:43.5]}
7. Nxc6 {[%clk 0:02:46.8]} 7... dxc6 {[%clk 0:02:43]} 8. O-O {[%clk 0:02:44.1]}
8... Be7 {[%clk 0:02:40.5]} 9. Nd2 {[%clk 0:02:36.2]} 9... Ng4 {[%clk
0:02:40.1]} 10. Qe2 {[%clk 0:02:08.6]} 10... O-O {[%clk 0:02:35.1]} 11. Rad1
{[%clk 0:02:03.8]} 11... Nxe3 {[%clk 0:02:21.8]} 12. fxe3 {[%clk 0:01:35.1]}
12... b5 {[%clk 0:02:08.1]} 13. Qh5 {[%clk 0:01:26.5]} 13... f6 {[%clk
0:02:06.7]} 14. Nb3 {[%clk 0:01:08.1]} 14... Qb6 {[%clk 0:02:04.4]} 15. Rf3
{[%clk 0:01:03]} 15... Be6 {[%clk 0:01:59]} 16. Rdf1 {[%clk 0:00:50.5]} 16... c5
{[%clk 0:01:53.6]} 17. Nc1 {[%clk 0:00:33.4]} 17... c4 {[%clk 0:01:52.3]} 18.
Be2 {[%clk 0:00:33.8]} 18... Rad8 {[%clk 0:01:51.8]} 19. Rg3 {[%clk 0:00:33.4]}
19... Bc5 {[%clk 0:01:12]} 20. Qh6 {[%clk 0:00:23.5]} 20... Rd7 {[%clk
0:01:12.2]} 21. Kh1 {[%clk 0:00:16.1]} 21... Kh8 {[%clk 0:01:06.5]} 22. Qh5
{[%clk 0:00:13.3]} 22... Bxe3 {[%clk 0:01:04.2]} 23. Bg4 {[%clk 0:00:12.1]}
23... Bxg4 {[%clk 0:00:33.1]} 24. Qxg4 {[%clk 0:00:05.7]} 24... Rfd8 {[%clk
0:00:31.9]} 25. h4 {[%clk 0:00:03.5]} 25... Bf4 {[%clk 0:00:27.7]} 26. Rgf3
{[%clk 0:00:02.6]} 26... Qd4 {[%clk 0:00:20.5]} 27. Ne2 {[%clk 0:00:02.4]} 27...
Qxe4 {[%clk 0:00:18.9]} 28. Nxf4 {[%clk 0:00:03]} 28... exf4 {[%clk 0:00:19.2]}
29. Rxf4 {[%clk 0:00:03.9]} 29... Qg6 {[%clk 0:00:19.3]} 30. Qe6 {[%clk
0:00:03.9]} 30... h6 {[%clk 0:00:15.2]} 31. R4f2 {[%clk 0:00:04]} 31... Rd4
{[%clk 0:00:14.4]} 32. Qh3 {[%clk 0:00:02.3]} 32... Rg4 {[%clk 0:00:12.8]} 33.
g3 {[%clk 0:00:02.6]} 33... Rxg3 {[%clk 0:00:12.9]} 34. Qe6 {[%clk 0:00:03.1]}
34... Rg4 {[%clk 0:00:12.4]} 35. Rh2 {[%clk 0:00:03.3]} 35... h5 {[%clk
0:00:11.1]} 36. Re1 {[%clk 0:00:02.9]} 36... Kh7 {[%clk 0:00:10.9]} 37. Qe3
{[%clk 0:00:03.2]} 37... Rdd4 {[%clk 0:00:10.8]} 38. Qf2 {[%clk 0:00:03.2]}
38... Rdf4 {[%clk 0:00:10.5]} 39. Qe3 {[%clk 0:00:02.5]} 39... Rxh4 {[%clk
0:00:10.6]} 40. Qe2 {[%clk 0:00:02]} 40... Rxh2+ {[%clk 0:00:10.1]} 41. Qxh2
{[%clk 0:00:02.9]} 41... Rg4 {[%clk 0:00:09.7]} 42. Re2 {[%clk 0:00:02.5]} 42...
Qg5 {[%clk 0:00:09.4]} 43. Re8 {[%clk 0:00:02.6]} 43... Rh4 {[%clk 0:00:09.4]}
0-1